fUST/lending_fUST_20241118
["ID","MTS","AMOUNT","RATE_DAILY","PERIOD"]
[342499413,1731934232746,-500.0,0.00014061,2]
[342499415,1731934232755,-500.0,0.00014061,2]
[342499417,1731934232765,-500.0,0.00014061,2]
[342499419,1731934232774,-514.63516688,0.00014062,2]
[342499421,1731934232783,-166.90578417,0.00014062,2]
[342499423,1731934232796,-519.22387543,0.00014062,2]
[342499425,1731934232805,-320.76463895,0.00014062,2]
[342499427,1731934232814,-500.0,0.00014062,2]
[342499429,1731934232823,-500.0,0.00014062,2]
[342499430,1731934232832,-519.06,0.00014062,2]
[342499432,1731934232842,-500.0,0.00014062,2]
[342499434,1731934232851,-500.0,0.00014062,2]
[342499435,1731934232861,-301.20646688,0.00014062,2]
[342499437,1731934232871,-509.55235097,0.00014062,2]
[342499439,1731934232880,-500.0,0.00014062,2]
[342499441,1731934232890,-500.0,0.00014062,2]
[342499443,1731934232899,-371.56756038,0.00014062,2]
[342499445,1731934232909,-579.23709984,0.00014062,2]
[342499447,1731934232918,-336.27571041,0.00014062,2]
[342499449,1731934232928,-638.57496346,0.00014062,2]
[342499451,1731934232937,-500.0,0.00014062,2]
[342499453,1731934232946,-500.0,0.00014062,2]
[342499454,1731934232956,-554.41167326,0.00014062,2]
[342499455,1731934232966,-500.0,0.00014062,2]
[342499457,1731934232979,-500.0,0.00014062,2]
[342499459,1731934232989,-500.0,0.00014062,2]
[342499462,1731934232999,-352.82421096,0.00014062,2]
[342499463,1731934233009,-500.0,0.00014062,2]
[342499465,1731934233019,-553.967654,0.00014062,2]
[342499466,1731934233028,-500.0,0.00014062,2]
[342499467,1731934233038,-502.6373402,0.00014062,2]
[342499468,1731934233048,-500.0,0.00014062,2]
[342499469,1731934233059,-500.0,0.00014062,2]
[342499470,1731934233070,-500.0,0.00014062,2]
[342499471,1731934233079,-500.0,0.00014062,2]
[342499472,1731934233090,-517.32901684,0.00014062,2]
[342499473,1731934233100,-500.0,0.00014062,2]
[342499474,1731934233110,-504.88976585,0.00014062,2]
[342499475,1731934233120,-502.18,0.00014062,2]
[342499476,1731934233130,-502.1238189,0.00014062,2]
[342499477,1731934233140,-500.0,0.00014062,2]
[342499478,1731934233150,-632.54,0.00014062,2]
[342499479,1731934233160,-500.0,0.00014062,2]
[342499480,1731934233171,-500.0,0.00014062,2]
[342499481,1731934233181,-500.0,0.00014062,2]
[342499482,1731934233191,-500.0,0.00014062,2]
[342499483,1731934233201,-500.0,0.00014062,2]
[342499484,1731934233211,-515.11547642,0.00014062,2]
[342499485,1731934233221,-500.0,0.00014062,2]
[342499486,1731934233234,-2000.0,0.00014062,2]
[342499487,1731934233244,-502.25407752,0.00014062,2]
[342499488,1731934233256,-500.0,0.00014062,2]
[342499489,1731934233266,-500.0,0.00014062,2]
[342499490,1731934233276,-997.12,0.00014062,2]
[342499491,1731934233287,-500.0,0.00014062,2]
[342499492,1731934233296,-512.51606304,0.00014062,2]
[342499493,1731934233306,-610.14781673,0.00014062,2]
[342499494,1731934233323,-500.0,0.00014062,2]
[342499495,1731934233332,-500.0,0.00014062,2]
[342499496,1731934233342,-371.66081218,0.00014062,2]
[342499497,1731934233351,-500.0,0.00014062,2]
[342499498,1731934233361,-500.0,0.00014062,2]
[342499499,1731934233371,-507.08474912,0.00014062,2]
[342499500,1731934233381,-517.034513,0.00014062,2]
[342499501,1731934233391,-500.0,0.00014062,2]
[342499502,1731934233401,-1142.72,0.00014062,2]
[342499503,1731934233410,-502.02701905,0.00014062,2]
[342499504,1731934233420,-505.56183654,0.00014062,2]
[342499505,1731934233429,-500.0,0.00014062,2]
[342499506,1731934233439,-523.79,0.00014062,2]
[342499507,1731934233449,-567.1490371,0.00014062,2]
[342499508,1731934233459,-508.78155985,0.00014062,2]
[342499509,1731934233469,-511.65054604,0.00014062,2]
[342499510,1731934233480,-500.0,0.00014062,2]
[342499511,1731934233490,-500.0,0.00014062,2]
[342499512,1731934233506,-777.8,0.00014062,2]
[342499513,1731934233516,-609.1186669,0.00014062,2]
[342499514,1731934233527,-892.27,0.00014062,2]
[342499515,1731934233536,-500.0,0.00014062,2]
[342499516,1731934233545,-1668.36,0.00014062,2]
[342499517,1731934233555,-247.03066628,0.00014062,2]
[342499518,1731934233564,-500.0,0.00014062,2]
[342499519,1731934233574,-500.0,0.00014062,2]
[342499520,1731934233584,-500.0,0.00014062,2]
[342499521,1731934233593,-500.0,0.00014062,2]
[342499522,1731934233604,-500.0,0.00014062,2]
[342499523,1731934233613,-523.79202908,0.00014062,2]
[342499524,1731934233623,-500.0,0.00014062,2]
[342499525,1731934233633,-581.44,0.00014062,2]
[342499526,1731934233643,-612.37127038,0.00014062,2]
[342499527,1731934233654,-557.85,0.00014062,2]
[342499528,1731934233663,-523.35142882,0.00014062,2]
[342499529,1731934233673,-500.0,0.00014062,2]
[342499530,1731934233683,-500.89857771,0.00014062,2]
[342499531,1731934233693,-500.0,0.00014062,2]
[342499532,1731934233703,-151.0,0.00014062,2]
[342499533,1731934233712,-500.0,0.00014062,2]
[342499534,1731934233721,-151.0,0.00014062,2]
[342499535,1731934233734,-500.0,0.00014062,2]
[342499536,1731934233743,-500.0,0.00014062,2]
[342499537,1731934233753,-502.98076554,0.00014062,2]
[342499538,1731934233762,-541.80817312,0.00014062,2]
[342499539,1731934233772,-500.0,0.00014062,2]
[342499540,1731934233781,-500.0,0.00014062,2]
[342499541,1731934233791,-500.0,0.00014062,2]
[342499542,1731934233810,-500.0,0.00014062,2]
[342499543,1731934233821,-663.44,0.00014062,2]
[342499544,1731934233830,-151.0,0.00014062,2]
[342499545,1731934233840,-508.16510162,0.00014062,2]
[342499546,1731934233850,-505.09889688,0.00014062,2]
[342499547,1731934233859,-500.0,0.00014062,2]
[342499548,1731934233869,-502.57631226,0.00014062,2]
[342499549,1731934233879,-878.3,0.00014062,2]
[342499550,1731934233888,-151.0,0.00014062,2]
[342499551,1731934233899,-500.0,0.00014062,2]
[342499552,1731934233908,-151.0,0.00014062,2]
[342499553,1731934233919,-151.0,0.00014062,2]
[342499554,1731934233929,-151.0,0.00014062,2]
[342499555,1731934233939,-151.0,0.00014062,2]
[342499556,1731934233950,-151.0,0.00014062,2]
[342499557,1731934233959,-151.0,0.00014062,2]
[342499558,1731934233971,-240.225361,0.00014062,2]
[342499559,1731934233983,-240.225361,0.00014062,2]
[342499560,1731934233994,-151.0,0.00014062,2]
[342499561,1731934234004,-151.0,0.00014062,2]
[342499562,1731934234015,-151.0,0.00014062,2]
[342499563,1731934234025,-151.0,0.00014062,2]
[342499564,1731934234036,-151.0,0.00014062,2]
[342499565,1731934234046,-151.0,0.00014062,2]
[342499566,1731934234056,-151.0,0.00014062,2]
[342499567,1731934234066,-225.340252,0.00014062,2]
[342499568,1731934234076,-317.62138702,0.00014063,2]
[342499569,1731934234086,-500.0,0.00014063,2]
[342499570,1731934234096,-513.86812561,0.00014063,2]
[342499571,1731934234106,-500.0,0.00014063,2]
[342499572,1731934234115,-500.0,0.00014063,2]
[342499573,1731934234126,-504.42817943,0.00014063,2]
[342499574,1731934234135,-500.81426844,0.00014063,2]
[342499575,1731934234146,-500.0,0.00014063,2]
[342499576,1731934234156,-500.0,0.00014063,2]
[342499577,1731934234166,-172.9774098,0.00014063,2]
[342499578,1731934234177,-500.76184586,0.00014073,2]
[342499579,1731934234188,-1000.0,0.00014235,2]
[342499580,1731934234198,-500.0,0.00014246,2]
[342499581,1731934234208,-500.0,0.00014246,2]
[342499582,1731934234218,-500.0,0.00014246,2]
[342499583,1731934234229,-500.0,0.00014246,2]
[342499584,1731934234239,-590.62,0.00014246,2]
[342499585,1731934234249,-500.0,0.00014246,2]
[342499586,1731934234258,-500.0,0.00014246,2]
[342499587,1731934234269,-500.0,0.00014246,2]
[342499588,1731934234278,-500.0,0.00014246,2]
[342499589,1731934234289,-500.0,0.00014246,2]
[342499590,1731934234298,-500.0,0.00014246,2]
[342499591,1731934234308,-500.0,0.00014246,2]
[342499592,1731934234319,-500.0,0.00014246,2]
[342499593,1731934234329,-500.0,0.00014246,2]
[342499594,1731934234338,-500.0,0.00014246,2]
[342499595,1731934234348,-500.0,0.00014246,2]
[342499596,1731934234564,-519.19,0.00014246,2]
[342499597,1731934234575,-151.0,0.00014246,2]
[342499598,1731934234586,-500.0,0.00014246,2]
[342499599,1731934234596,-500.0,0.00014246,2]
[342499600,1731934234606,-500.0,0.00014246,2]
[342499601,1731934234617,-151.0,0.00014246,2]
[342499602,1731934234627,-151.0,0.00014246,2]
[342499603,1731934234637,-694.77,0.00014246,2]
[342499604,1731934234647,-151.0,0.00014246,2]
[342499605,1731934234656,-522.3947254,0.00014246,2]
[342499606,1731934234666,-188.290199,0.00014246,2]
[342499607,1731934234676,-500.0,0.00014246,2]
[342499608,1731934234686,-500.0,0.00014246,2]
[342499609,1731934234695,-500.0,0.00014246,2]
[342499610,1731934234705,-500.0,0.00014246,2]
[342499611,1731934234715,-500.0,0.00014246,2]
[342499612,1731934234725,-151.0,0.00014246,2]
[342499613,1731934234736,-151.0,0.00014246,2]
[342499614,1731934234745,-500.0,0.00014246,2]
[342499615,1731934234755,-775.31,0.00014246,2]
[342499616,1731934234765,-500.0,0.00014246,2]
[342499617,1731934234775,-500.0,0.00014246,2]
[342499618,1731934234785,-550.27,0.00014246,2]
[342499619,1731934234795,-240.225361,0.00014246,2]
[342499620,1731934234806,-2228.42,0.00014246,2]
[342499621,1731934234816,-240.225361,0.00014246,2]
[342499622,1731934234826,-151.0,0.00014246,2]
[342499623,1731934234837,-500.0,0.00014246,2]
[342499624,1731934234847,-829.92,0.00014246,2]
[342499625,1731934234857,-1097.54,0.00014246,2]
[342499626,1731934234867,-500.0,0.00014246,2]
[342499627,1731934234878,-1783.97,0.00014246,2]
[342499628,1731934234888,-500.0,0.00014246,2]
[342499629,1731934234897,-500.0,0.00014246,2]
[342499630,1731934234907,-500.0,0.00014246,2]
[342499631,1731934234917,-500.0,0.00014246,2]
[342499632,1731934234927,-1369.67,0.00014246,2]
[342499633,1731934234937,-990.17,0.00014246,2]
[342499634,1731934234947,-973.36,0.00014246,2]
[342499635,1731934234957,-230.57257454,0.00014246,2]
[342499636,1731934234966,-7243.45,0.00014246,2]
[342499637,1731934234978,-2628.01,0.00014246,2]
[342499638,1731934234988,-251.07767996,0.00014246,2]
[342499639,1731934234997,-1138.45,0.00014246,2]
[342499640,1731934235007,-500.0,0.00014246,2]
[342499641,1731934235019,-657.24,0.00014246,2]
[342499642,1731934235028,-6051.03,0.00014246,2]
[342499643,1731934235038,-500.0,0.00014246,2]
[342499644,1731934235048,-500.0,0.00014246,2]
[342499645,1731934235058,-151.0,0.00014246,2]
[342499646,1731934235068,-151.0,0.00014246,2]
[342499647,1731934235078,-151.0,0.00014246,2]
[342499648,1731934235088,-839.86,0.00014246,2]
[342499649,1731934235098,-500.0,0.00014246,2]
[342499650,1731934235107,-500.0,0.00014246,2]
[342499651,1731934235117,-611.94,0.00014246,2]
[342499652,1731934235127,-1278.89,0.00014246,2]
[342499653,1731934235137,-500.0,0.00014246,2]
[342499654,1731934235148,-500.0,0.00014246,2]
[342499655,1731934235158,-417.27745437,0.00014246,2]
[342499656,1731934235171,-630.29013129,0.00014246,2]
[342499657,1731934235183,-500.0,0.00014246,2]
[342499658,1731934235195,-500.0,0.00014246,2]
[342499659,1731934235207,-8810.93616202,0.00014304,2]
[342499660,1731934235218,-151.0,0.00014312,2]
[342499661,1731934235228,-151.0,0.00014312,2]
[342499662,1731934235238,-151.0,0.00014312,2]
[342499663,1731934235248,-8951.513782,0.00014312,2]
[342499664,1731934235257,-8951.513782,0.00014312,2]
[342499665,1731934235266,-233.752798,0.00014312,2]
[342499666,1731934235276,-233.752798,0.00014312,2]
[342499667,1731934235285,-151.0,0.00014312,2]
[342499668,1731934235295,-151.0,0.00014312,2]
[342499669,1731934235304,-151.0,0.00014312,2]
[342499670,1731934235313,-240.225361,0.00014312,2]
[342499671,1731934235322,-240.225361,0.00014312,2]
[342499672,1731934235332,-151.0,0.00014312,2]
[342499673,1731934235342,-151.0,0.00014312,2]
[342499674,1731934235352,-151.0,0.00014312,2]
[342499675,1731934235362,-320.91178358,0.00014335,2]
[342499676,1731934235371,-151.0,0.00014335,2]
[342499677,1731934235381,-151.0,0.00014335,2]
[342499678,1731934235390,-151.0,0.00014335,2]
[342499679,1731934235399,-500.0,0.00014336,2]
[342499680,1731934235409,-519.06,0.00014336,2]
[342499681,1731934235418,-500.0,0.00014336,2]
[342499682,1731934235427,-500.0,0.00014336,2]
[342499683,1731934235436,-500.0,0.00014336,2]
[342499684,1731934235450,-500.0,0.00014336,2]
[342499685,1731934235459,-500.0,0.00014336,2]
[342499686,1731934235469,-151.0,0.00014336,2]
[342499687,1731934235480,-164.09990172,0.00014336,2]
[342499688,1731934235490,-500.0,0.00014336,2]
[342499689,1731934235499,-500.0,0.00014336,2]
[342499690,1731934235509,-151.243136,0.00014336,2]
[342499691,1731934235518,-502.18,0.00014336,2]
[342499692,1731934235527,-500.0,0.00014336,2]
[342499693,1731934235537,-151.0,0.00014336,2]
[342499694,1731934235547,-632.54,0.00014336,2]
[342499695,1731934235556,-151.0,0.00014336,2]
[342499696,1731934235569,-500.0,0.00014336,2]
[342499697,1731934235579,-504.67947968,0.00014336,2]
[342499698,1731934235589,-500.0,0.00014336,2]
[342499699,1731934235598,-500.0,0.00014336,2]
[342499700,1731934235607,-500.0,0.00014336,2]
[342499701,1731934235616,-500.0,0.00014336,2]
[342499702,1731934235626,-997.12,0.00014336,2]
[342499703,1731934235635,-500.0,0.00014336,2]
[342499704,1731934235644,-1142.72,0.00014336,2]
[342499705,1731934235654,-500.0,0.00014336,2]
[342499706,1731934235663,-523.79,0.00014336,2]
[342499707,1731934235672,-151.0,0.00014336,2]
[342499708,1731934235681,-500.0,0.00014336,2]
[342499709,1731934235690,-500.0,0.00014336,2]
[342499710,1731934235699,-777.8,0.00014336,2]
[342499711,1731934235708,-892.27,0.00014336,2]
[342499712,1731934235717,-151.0,0.00014336,2]
[342499713,1731934235726,-1668.36,0.00014336,2]
[342499714,1731934235736,-500.0,0.00014336,2]
[342499715,1731934235745,-500.0,0.00014336,2]
[342499716,1731934235754,-581.44,0.00014336,2]
[342499717,1731934235763,-8951.513782,0.00014336,2]
[342499718,1731934235772,-8951.513782,0.00014336,2]
[342499719,1731934235781,-557.85,0.00014336,2]
[342499720,1731934235793,-151.0,0.00014336,2]
[342499721,1731934235802,-233.752798,0.00014336,2]
[342499722,1731934235811,-500.0,0.00014336,2]
[342499723,1731934235820,-233.752798,0.00014336,2]
[342499724,1731934235830,-500.0,0.00014336,2]
[342499725,1731934235839,-500.0,0.00014336,2]
[342499726,1731934235849,-500.0,0.00014336,2]
[342499727,1731934235858,-663.44,0.00014336,2]
[342499728,1731934235868,-500.0,0.00014336,2]
[342499729,1731934235879,-878.3,0.00014336,2]
[342499730,1731934235889,-151.0,0.00014336,2]
[342499731,1731934235899,-151.0,0.00014336,2]
[342499732,1731934235908,-151.0,0.00014336,2]
[342499733,1731934235918,-151.0,0.00014336,2]
[342499734,1731934235928,-151.0,0.00014336,2]
[342499735,1731934235937,-240.225361,0.00014336,2]
[342499736,1731934235947,-240.225361,0.00014336,2]
[342499737,1731934235956,-151.0,0.00014336,2]
[342499738,1731934235967,-151.0,0.00014336,2]
[342499739,1731934235979,-151.0,0.00014336,2]
[342499740,1731934235990,-151.0,0.00014336,2]
[342499741,1731934235999,-151.0,0.00014338,2]
[342499742,1731934236008,-151.0,0.00014338,2]
[342499743,1731934236018,-513.541546,0.00014338,2]
[342499744,1731934236027,-513.541546,0.00014338,2]
[342499745,1731934236037,-151.0,0.00014338,2]
[342499746,1731934236047,-346.39807428,0.00014399,2]
[342499747,1731934236057,-307.572,0.00014461,2]
[342499748,1731934236066,-200.2621614,0.00014472,2]
[342499749,1731934236076,-151.0,0.00014472,2]
[342499750,1731934236086,-151.0,0.0001451,2]
[342499751,1731934236096,-151.0,0.0001451,2]
[342499752,1731934236106,-151.0,0.0001451,2]
[342499753,1731934236117,-151.0,0.0001451,2]
[342499754,1731934236126,-151.0,0.0001451,2]
[342499755,1731934236136,-151.0,0.0001451,2]
[342499756,1731934236146,-151.0,0.0001451,2]
[342499757,1731934236156,-513.541546,0.0001451,2]
[342499758,1731934236166,-513.541546,0.0001451,2]
[342499759,1731934236175,-8951.513782,0.0001451,2]
[342499760,1731934236185,-8951.513782,0.0001451,2]
[342499761,1731934236194,-151.0,0.0001451,2]
[342499762,1731934236204,-233.752798,0.0001451,2]
[342499763,1731934236214,-233.752798,0.0001451,2]
[342499764,1731934236223,-151.0,0.0001451,2]
[342499765,1731934236236,-151.0,0.0001451,2]
[342499766,1731934236245,-151.0,0.0001451,2]
[342499767,1731934236255,-151.0,0.0001451,2]
[342499768,1731934236264,-240.225361,0.0001451,2]
[342499769,1731934236274,-240.225361,0.0001451,2]
[342499770,1731934236284,-156.821046,0.0001451,2]
[342499771,1731934236294,-830.40542325,0.0001451,2]
[342499772,1731934236304,-151.0,0.0001451,2]
[342499773,1731934236318,-151.0,0.0001451,2]
[342499774,1731934236331,-151.0,0.0001451,2]
[342499775,1731934236344,-65300.54932099,0.0001451,2]
[342499776,1731934236358,-167.744716,0.00014515,2]
[342499777,1731934236371,-167.744716,0.00014515,2]
[342499778,1731934236384,-151.0,0.00014515,2]
[342499779,1731934236394,-299.663373,0.00014515,2]
[342499780,1731934236405,-500.0,0.0001452,2]
[342499781,1731934236418,-500.0,0.0001452,2]
[342499782,1731934236430,-500.0,0.0001452,2]
[342499783,1731934236443,-500.0,0.0001452,2]
[342499784,1731934236455,-590.62,0.0001452,2]
[342499785,1731934236467,-359.72460192,0.0001452,2]
[342499786,1731934236480,-500.0,0.0001452,2]
[342499787,1731934236492,-500.0,0.0001452,2]
[342499788,1731934236504,-500.0,0.0001452,2]
[342499789,1731934236516,-500.0,0.0001452,2]
[342499790,1731934236528,-500.0,0.0001452,2]
[342499791,1731934236541,-500.0,0.0001452,2]
[342499792,1731934236553,-500.0,0.0001452,2]
[342499793,1731934236567,-500.0,0.0001452,2]
[342499794,1731934236579,-500.0,0.0001452,2]
[342499795,1731934236592,-500.0,0.0001452,2]
[342499796,1731934236605,-519.19,0.0001452,2]
[342499797,1731934236616,-500.0,0.0001452,2]
[342499798,1731934236627,-500.0,0.0001452,2]
[342499799,1731934236639,-263.39876568,0.0001452,2]
[342499800,1731934236652,-676.51184288,0.0001452,2]
[342499801,1731934236779,-500.0,0.00014509,2]
[342499802,1731934236791,-84.5,0.00014509,2]
[342499803,1731934236812,-125.73319599,0.00014509,2]
[342499804,1731934236823,-185.80760036,0.00014509,2]
[342499805,1731934236835,-500.0,0.00014509,2]
[342499806,1731934236849,-18.25815712,0.0001452,2]
[342499807,1731934236860,-500.0,0.0001452,2]
[342499808,1731934236875,-204.23785828,0.0001452,2]
[342499809,1731934236886,-500.0,0.0001452,2]
[342499810,1731934236899,-500.0,0.0001452,2]
[342499811,1731934236911,-500.0,0.0001452,2]
[342499812,1731934236922,-500.0,0.0001452,2]
[342499813,1731934236932,-116.16181585,0.0001452,2]
[342499814,1731934236945,-553.84175,0.0001452,2]
[342499827,1731934238457,-500.0,0.00014509,2]
[342499828,1731934238467,-500.0,0.00014509,2]
[342499829,1731934238477,-500.0,0.00014509,2]
[342499830,1731934238488,-500.0,0.00014509,2]
[342499831,1731934238497,-500.0,0.00014509,2]
[342499832,1731934238507,-500.0,0.00014509,2]
[342499833,1731934238517,-500.0,0.00014509,2]
[342499834,1731934238526,-500.0,0.00014509,2]
[342499835,1731934238536,-500.0,0.0001452,2]
[342499836,1731934238546,-500.0,0.0001452,2]
[342499837,1731934238556,-550.27,0.0001452,2]
[342499838,1731934238565,-2228.42,0.0001452,2]
[342499839,1731934238575,-500.0,0.0001452,2]
[342499840,1731934238584,-829.92,0.0001452,2]
[342499841,1731934238594,-1097.54,0.0001452,2]
[342499842,1731934238603,-500.0,0.0001452,2]
[342499843,1731934238613,-1783.97,0.0001452,2]
[342499844,1731934238622,-500.0,0.0001452,2]
[342499845,1731934238631,-500.0,0.0001452,2]
[342499846,1731934238641,-500.0,0.0001452,2]
[342499853,1731934238927,-500.0,0.0001452,2]
[342499854,1731934238947,-1369.67,0.0001452,2]
[342499855,1731934238961,-990.17,0.0001452,2]
[342499856,1731934238971,-973.36,0.0001452,2]
[342499857,1731934238980,-3157.55361806,0.0001452,2]
[342499858,1731934238996,-905.09506003,0.0001452,2]
[342499859,1731934239008,-3180.80132191,0.0001452,2]
[342499860,1731934239018,-2628.01,0.0001452,2]
[342499861,1731934239028,-1138.45,0.0001452,2]
[342499862,1731934239037,-500.0,0.0001452,2]
[342499863,1731934239047,-657.24,0.0001452,2]
[342499864,1731934239056,-6051.03,0.0001452,2]
[342499865,1731934239065,-500.0,0.0001452,2]
[342499866,1731934239075,-116.50237697,0.0001452,2]
[342499867,1731934239087,-307.9801848,0.0001452,2]
[342499868,1731934239099,-75.51743823,0.0001452,2]
[342499869,1731934239111,-839.86,0.0001452,2]
[342499870,1731934239121,-469.97343715,0.0001452,2]
[342499871,1731934239194,-30.02656285,0.0001452,2]
[342499872,1731934239204,-500.0,0.0001452,2]
[342499873,1731934239214,-611.94,0.0001452,2]
[342499874,1731934239223,-1278.89,0.0001452,2]
[342499875,1731934239235,-500.0,0.0001452,2]
[342499876,1731934239245,-500.0,0.0001452,2]
[342499877,1731934239254,-500.0,0.0001452,2]
[342499878,1731934239264,-500.0,0.0001452,2]
[342499879,1731934239274,-500.0,0.00014573,2]
[342499880,1731934239283,-500.0,0.00014573,2]
[342499881,1731934239294,-500.0,0.0001461,2]
[342499882,1731934239303,-519.06,0.0001461,2]
[342499883,1731934239312,-500.0,0.0001461,2]
[342499884,1731934239322,-500.0,0.0001461,2]
[342499885,1731934239331,-500.0,0.0001461,2]
[342499886,1731934239342,-500.0,0.0001461,2]
[342499887,1731934239351,-298.325055,0.0001461,2]
[342499888,1731934239361,-500.0,0.0001461,2]
[342499889,1731934239371,-500.0,0.0001461,2]
[342499890,1731934239381,-500.0,0.0001461,2]
[342499891,1731934239391,-502.18,0.0001461,2]
[342499892,1731934239400,-500.0,0.0001461,2]
[342499893,1731934239410,-632.54,0.0001461,2]
[342499894,1731934239420,-151.0,0.0001461,2]
[342499895,1731934239429,-500.0,0.0001461,2]
[342499896,1731934239439,-331.67,0.0001461,2]
[342499897,1731934239449,-500.0,0.0001461,2]
[342499898,1731934239459,-500.0,0.0001461,2]
[342499899,1731934239469,-500.0,0.0001461,2]
[342499900,1731934239478,-997.12,0.0001461,2]
[342499901,1731934239492,-500.0,0.0001461,2]
[342499902,1731934239501,-1142.72,0.0001461,2]
[342499903,1731934239511,-500.0,0.0001461,2]
[342499904,1731934239521,-523.79,0.0001461,2]
[342499905,1731934239531,-497.91960751,0.0001461,2]
[342499906,1731934239541,-500.0,0.0001461,2]
[342499907,1731934239551,-777.8,0.0001461,2]
[342499908,1731934239561,-892.27,0.0001461,2]
[342499909,1731934239571,-151.0,0.0001461,2]
[342499910,1731934239580,-1668.36,0.0001461,2]
[342499911,1731934239590,-613.33618028,0.0001461,2]
[342499912,1731934239600,-302.35636263,0.0001461,2]
[342499913,1731934239609,-581.44,0.0001461,2]
[342499914,1731934239620,-8266.09177675,0.0001461,2]
[342499939,1731934240494,-685.42200525,0.0001461,2]
[342499940,1731934240504,-624.84965569,0.0001461,2]
[342499941,1731934240554,-5011.89986654,0.0001461,2]
[342499942,1731934240567,-3314.76425977,0.0001461,2]
[342499943,1731934240577,-557.85,0.0001461,2]
[342499944,1731934240587,-233.752798,0.0001461,2]
[342499945,1731934240597,-500.0,0.0001461,2]
[342499946,1731934240608,-233.752798,0.0001461,2]
[342499947,1731934240617,-500.0,0.0001461,2]
[342499948,1731934240627,-500.0,0.0001461,2]
[342499949,1731934240636,-500.0,0.0001461,2]
[342499950,1731934240645,-663.44,0.0001461,2]
[342499951,1731934240655,-500.0,0.0001461,2]
[342499952,1731934240665,-878.3,0.0001461,2]
[342499953,1731934240675,-151.0,0.0001461,2]
[342499954,1731934240685,-239.446869,0.0001461,2]
[342499955,1731934240695,-151.0,0.0001461,2]
[342499956,1731934240704,-297.615742,0.0001461,2]
[342499957,1731934240715,-240.225361,0.0001461,2]
[342499958,1731934240725,-240.225361,0.0001461,2]
[342499959,1731934240737,-151.0,0.0001461,2]
[342499960,1731934240747,-151.0,0.0001461,2]
[342499961,1731934240756,-151.0,0.00014611,2]
[342499962,1731934240766,-151.0,0.00014611,2]
[342499963,1731934240775,-151.0,0.00014611,2]
[342499964,1731934240785,-151.0,0.00014611,2]
[342499965,1731934240795,-221.149916,0.00014611,2]
[342499966,1731934240809,-513.541546,0.00014611,2]
[342499967,1731934240819,-513.541546,0.00014611,2]
[342499968,1731934240828,-167.744716,0.00014612,2]
[342499969,1731934240838,-167.744716,0.00014612,2]
[342499970,1731934240850,-151.0,0.00014612,2]
[342499971,1731934240860,-299.663373,0.00014612,2]
[342499972,1731934240870,-155.123807,0.00014612,2]
[342499973,1731934240883,-151.0,0.00014612,2]
[342499974,1731934240893,-151.0,0.00014615,2]
[342499975,1731934240903,-151.0,0.00014615,2]
[342499976,1731934240913,-151.0,0.00014615,2]
[342499977,1731934240923,-240.225361,0.00014615,2]
[342499978,1731934240933,-240.225361,0.00014615,2]